[Event "Velammal AICF Women GM 2024"]
[Site "Chennai"]
[Date "2024.03.20"]
[Round "4.2"]
[White "Enkhtuul, Altan-Ulzii"]
[Black "Franco Valencia, Angela"]
[Result "1/2-1/2"]
[ECO "A43"]
[WhiteElo "2195"]
[BlackElo "2095"]
[Annotator "RC"]
[PlyCount "183"]
[EventDate "2024.03.18"]
[EventType "tourn"]
[EventCountry "IND"]
[SourceTitle "playchess.com"]
[Source "ChessBase"]
[SourceQuality "1"]
[TimeControl "5400+30"]

1. d4 {[%emt 0:02:47]} Nf6 {[%emt 0:00:11]} 2. Nf3 {[%emt 0:00:06]} c5 {[%emt 0:00:19]} 3. d5 {[%emt 0:00:05]} e6 {[%emt 0:00:33]} 4. Nc3 {[%emt 0:00:05]} d6 {[%emt 0:00:26]} 5. e4 {[%emt 0:00:17]} e5 {[%emt 0:01:13]} 6. Bb5+ {[%emt 0:00:46]} Nbd7 {[%emt 0:00:36]} 7. a4 {[%emt 0:00:11]} Be7 {[%emt 0:00:23]} 8. O-O {[%emt 0:00:19]} a6 {[%emt 0:00:32]} 9. Bd3 {[%emt 0:02:52]} Nf8 {[%emt 0:02:56]} 10. Nd2 {[%emt 0:02:13]} Ng6 {[%emt 0:00:22]} 11. Nc4 {[%emt 0:02:58]} O-O {[%emt 0:01:02]} 12. Ne2 {[%emt 0:09:56]} Bd7 {[%emt 0:07:14]} 13. a5 {[%emt 0:04:34]} Bb5 {[%emt 0:05:57]} 14. Nb6 {[%emt 0:00:18]} c4 {[%emt 0:04:39]} 15. Bxc4 {[%emt 0:03:36]} Bxc4 {[%emt 0:00:12]} 16. Nxc4 {[%emt 0:00:06]} Nxe4 {[%emt 0:00:20]} 17. Nb6 {[%emt 0:04:45]} Rb8 {[%emt 0:00:10]} 18. b4 {[%emt 0:01:45]} f5 {[%emt 0:04:58]} 19. f3 {[%emt 0:06:17]} Nf6 {[%emt 0:00:49]} 20. c4 {[%emt 0:00:16]} Nd7 {[%emt 0:01:15]} 21. Be3 {[%emt 0:01:24]} f4 {[%emt 0:10:59]} 22. Nxd7 {[%emt 0:01:02]} Qxd7 {[%emt 0:00:06]} 23. Bb6 {[%emt 0:00:06]} Rbc8 {[%emt 0:02:45]} 24. Qd3 {[%emt 0:06:54]} Bd8 {[%emt 0:02:13]} 25. Rfc1 {[%emt 0:15:28]} Bxb6+ {[%emt 0:02:50]} 26. axb6 {[%emt 0:00:02]} e4 {[%emt 0:00:27]} 27. Qxe4 {[%emt 0:06:34]} Rfe8 {[%emt 0:00:08]} 28. Qc2 {[%emt 0:00:49]} Ne5 {[%emt 0:06:59]} 29. c5 {[%emt 0:02:55]} dxc5 {[%emt 0:00:35]} 30. bxc5 {[%emt 0:00:49]} Qxd5 {[%emt 0:00:11]} 31. Qa2 {[%emt 0:02:17]} Qxa2 {[%emt 0:02:08]} 32. Rxa2 {[%emt 0:00:01]} g5 {[%emt 0:04:06]} 33. Rd2 {[%emt 0:03:18]} Red8 {[%emt 0:11:14]} 34. Rxd8+ {[%emt 0:01:00]} Rxd8 {[%emt 0:00:03]} 35. Nc3 {[%emt 0:00:35]} Kg7 {[%emt 0:09:16]} 36. Ne4 {[%emt 0:00:21]} Kg6 {[%emt 0:01:17]} 37. Kf1 {[%emt 0:04:30]} Rd7 {[%emt 0:02:50]} 38. Ke2 {[%emt 0:00:40]} g4 {[%emt 0:03:26]} 39. fxg4 {[%emt 0:03:15]} Re7 {[%emt 0:00:52]} 40. h3 {[%emt 0:05:10]} Nxg4 {[%emt 0:04:19]} 41. hxg4 {[%emt 0:00:07]} Rxe4+ {[%emt 0:00:04]} 42. Kf3 {[%emt 0:00:30]} Rb4 {[%emt 0:00:42]} 43. Rd1 {[%emt 0:04:47]} Rc4 {[%emt 0:00:55]} 44. Rd6+ {[%emt 0:00:12]} Kg5 {[%emt 0:00:12]} 45. Rd5+ {[%emt 0:00:29]} Kg6 {[%emt 0:00:16]} 46. Rd7 {[%emt 0:00:13]} Rxc5 {[%emt 0:01:15]} 47. Kxf4 {[%emt 0:00:29]} Rb5 {[%emt 0:00:26]} 48. Rxb7 {[%emt 0:00:51]} a5 {[%emt 0:00:28]} 49. Rb8 {[%emt 0:00:03]} Kg7 {[%emt 0:00:07]} 50. Rb7+ {[%emt 0:03:10]} Kg6 {[%emt 0:00:12]} 51. Ra7 {[%emt 0:00:21]} Rxb6 {[%emt 0:00:07]} 52. Rxa5 {[%emt 0:00:03]} Rc6 {[%emt 0:00:32]} 53. Rg5+ {[%emt 0:00:08]} Kf6 {[%emt 0:00:09]} 54. Rg8 {[%emt 0:00:12]} Kf7 {[%emt 0:00:27]} 55. Ra8 {[%emt 0:00:16]} Kg6 {[%emt 0:00:07]} 56. Kg3 {[%emt 0:00:06]} Rb6 {[%emt 0:01:25]} 57. Kh4 {[%emt 0:00:07]} Rc6 {[%emt 0:00:34]} 58. Rg8+ {[%emt 0:00:28]} Kf7 {[%emt 0:00:10]} 59. Rg5 {[%emt 0:00:38]} Rc1 {[%emt 0:00:29]} 60. Ra5 {[%emt 0:00:37]} h6 {[%emt 0:01:46]} 61. g5 {[%emt 0:02:43]} Rh1+ {[%emt 0:00:06]} 62. Kg3 {[%emt 0:00:55]} h5 {[%emt 0:00:27]} 63. Ra6 {[%emt 0:00:04]} Kg7 {[%emt 0:02:17]} 64. Rh6 {[%emt 0:01:47]} Kf7 {[%emt 0:00:05]} 65. Rf6+ {[%emt 0:00:46]} Kg7 {[%emt 0:00:04]} 66. Ra6 {[%emt 0:00:20]} Kf7 {[%emt 0:00:41]} 67. Kf2 {[%emt 0:00:53]} Kg7 {[%emt 0:00:22]} 68. g3 {[%emt 0:00:15]} Rh2+ {[%emt 0:01:32]} 69. Kf3 {[%emt 0:00:28]} h4 {[%emt 0:00:38]} 70. g4 {[%emt 0:00:18]} Rh1 {[%emt 0:00:19]} 71. Kg2 {[%emt 0:00:48]} Rc1 {[%emt 0:00:11]} 72. Kh3 {[%emt 0:00:03]} Rh1+ {[%emt 0:00:05]} 73. Kg2 {[%emt 0:00:03]} Rc1 {[%emt 0:00:04]} 74. Rh6 {[%emt 0:00:06]} Rc2+ {[%emt 0:00:47]} 75. Kh3 {[%emt 0:00:13]} Rc1 {[%emt 0:00:03]} 76. Rxh4 {[%emt 0:00:27]} Rh1+ {[%emt 0:00:09]} 77. Kg3 {[%emt 0:00:05]} Rxh4 {[%emt 0:00:06]} 78. Kxh4 {[%emt 0:00:09]} Kg6 {[%emt 0:00:01]} 79. Kg3 {[%emt 0:00:24]} Kxg5 {[%emt 0:00:03]} 80. Kf3 {[%emt 0:00:03]} Kg6 {[%emt 0:00:04]} 81. Kf4 {[%emt 0:00:04]} Kf6 {[%emt 0:00:03]} 82. g5+ {[%emt 0:00:07]} Kg6 {[%emt 0:00:03]} 83. Kg4 {[%emt 0:00:05]} Kg7 {[%emt 0:00:03]} 84. Kh5 {[%emt 0:00:04]} Kh7 {[%emt 0:00:03]} 85. g6+ {[%emt 0:00:08]} Kg7 {[%emt 0:00:02]} 86. Kg5 {[%emt 0:00:03]} Kg8 {[%emt 0:00:03]} 87. Kf6 {[%emt 0:00:07]} Kf8 {[%emt 0:00:03]} 88. Kf5 {[%emt 0:00:06]} Kg7 {[%emt 0:00:03]} 89. Kg5 {[%emt 0:00:04]} Kg8 {[%emt 0:00:03]} 90. Kh6 {[%emt 0:00:06]} Kh8 {[%emt 0:00:04]} 91. g7+ {[%emt 0:00:02]} Kg8 {[%emt 0:00:04]} 92. Kg6 {[%emt 0:00:04]} 1/2-1/2

[Event "Velammal AICF Women GM 2024"]
[Site "Chennai"]
[Date "2024.03.20"]
[Round "4.3"]
[White "Uuriintuya, Uurtsaikh"]
[Black "Gomes, Mary Ann"]
[Result "0-1"]
[ECO "B43"]
[WhiteElo "2288"]
[BlackElo "2322"]
[Annotator "RC"]
[PlyCount "92"]
[EventDate "2024.03.18"]
[EventType "tourn"]
[EventCountry "IND"]
[SourceTitle "playchess.com"]
[Source "ChessBase"]
[SourceQuality "1"]
[TimeControl "5400+30"]

1. e4 {[%emt 0:02:56]} c5 {[%emt 0:00:13]} 2. Nf3 {[%emt 0:00:06]} e6 {[%emt 0:00:06]} 3. d4 {[%emt 0:00:08]} cxd4 {[%emt 0:00:07]} 4. Nxd4 {[%emt 0:00:04]} a6 {[%emt 0:00:05]} 5. Nc3 {[%emt 0:00:13]} b5 {[%emt 0:00:10]} 6. Bd3 {[%emt 0:00:15]} Qb6 {[%emt 0:00:13]} 7. Nf3 {[%emt 0:00:32]} Qc7 {[%emt 0:01:46]} 8. O-O {[%emt 0:00:21]} Bb7 {[%emt 0:00:13]} 9. Re1 {[%emt 0:01:29]} Be7 {[%emt 0:00:21]} 10. e5 {[%emt 0:11:04]} f5 {[%emt 0:00:09]} 11. a4 {[%emt 0:04:32]} b4 {[%emt 0:00:07]} 12. Nb1 {[%emt 0:00:12]} Nc6 {[%emt 0:04:18]} 13. Nbd2 {[%emt 0:07:49]} Nh6 {[%emt 0:00:11]} 14. Nc4 {[%emt 0:03:05]} Nf7 {[%emt 0:00:07]} 15. a5 {[%emt 0:07:17]} O-O {[%emt 0:00:09]} 16. c3 {[%emt 0:02:36]} Bc5 {[%emt 0:03:16]} 17. Bd2 {[%emt 0:07:42]} bxc3 {[%emt 0:07:29]} 18. Bxc3 {[%emt 0:02:56]} Nb4 {[%emt 0:00:17]} 19. Be2 {[%emt 0:01:59]} Nd5 {[%emt 0:00:52]} 20. Bd4 {[%emt 0:07:04]} Nf4 {[%emt 0:06:01]} 21. Bf1 {[%emt 0:02:35]} Nh3+ {[%emt 0:10:41]} 22. gxh3 {[%emt 0:00:16]} Bxf3 {[%emt 0:00:05]} 23. Qxf3 {[%emt 0:00:05]} Bxd4 {[%emt 0:00:05]} 24. Qf4 {[%emt 0:01:56]} Bc5 {[%emt 0:01:26]} 25. h4 {[%emt 0:06:56]} Rab8 {[%emt 0:00:17]} 26. Rad1 {[%emt 0:01:16]} Rb4 {[%emt 0:02:19]} 27. Qd2 {[%emt 0:03:13]} Qd8 {[%emt 0:02:19]} 28. Qf4 {[%emt 0:09:59]} Qxa5 {[%emt 0:06:25]} 29. Nxa5 {[%emt 0:01:06]} Rxf4 {[%emt 0:00:06]} 30. Re2 {[%emt 0:00:04]} Bd4 {[%emt 0:05:02]} 31. Nb3 {[%emt 0:01:23]} Bxe5 {[%emt 0:00:09]} 32. Rxd7 {[%emt 0:00:33]} Rxh4 {[%emt 0:00:29]} 33. h3 {[%emt 0:00:37]} Ng5 {[%emt 0:06:06]} 34. Nc5 {[%emt 0:01:04]} Re8 {[%emt 0:12:15]} 35. Nxa6 {[%emt 0:02:42]} Rc8 {[%emt 0:03:34]} 36. Kg2 {[%emt 0:08:50]} Bf4 {[%emt 0:04:25]} 37. Rd3 {[%emt 0:01:09]} e5 {[%emt 0:01:55]} 38. b4 {[%emt 0:00:34]} e4 {[%emt 0:04:25]} 39. Ra3 {[%emt 0:01:35]} Rh6 {[%emt 0:03:29]} 40. Nc5 {[%emt 0:01:16]} Rb6 {[%emt 0:01:23]} 41. Ra4 {[%emt 0:00:36]} Nf3 {[%emt 0:03:10]} 42. Kh1 {[%emt 0:00:21]} Bd2 {[%emt 0:01:12]} 43. Bg2 {[%emt 0:00:48]} Rxc5 {[%emt 0:01:05]} 44. Bxf3 {[%emt 0:00:24]} Rc1+ {[%emt 0:00:07]} 45. Kg2 {[%emt 0:00:06]} exf3+ {[%emt 0:00:11]} 46. Kxf3 {[%emt 0:00:05]} Rc3+ {[%emt 0:00:27]} 0-1

[Event "Velammal AICF Women GM 2024"]
[Site "Chennai"]
[Date "2024.03.20"]
[Round "4.4"]
[White "Rindhiya V"]
[Black "Maisuradze, Nino"]
[Result "1-0"]
[ECO "B41"]
[WhiteElo "1953"]
[BlackElo "2254"]
[Annotator "TA"]
[PlyCount "75"]
[EventDate "2024.03.18"]
[EventType "tourn"]
[EventCountry "IND"]
[SourceTitle "playchess.com"]
[Source "ChessBase"]
[SourceQuality "1"]
[TimeControl "5400+30"]

{[%evp 13,75,60,54,42,54,38,71,63,73,11,23,-59,-46,-42,-45,-101,-14,-62,-74,-120,-118,-120,0,-17,-11,0,0,0,0,0,0,0,106,91,166,185,235,200,283,271,266,276,332,247,297,93,114,0,657,660,660,664,831,642,865,829,813,771,29985,29986,29991,29980,29980,29979]} 1. e4 {[%emt 0:00:02]} c5 {[%emt 0:00:07]} 2. Nf3 {[%emt 0:00:04]} Nc6 {[%emt 0:03:59]} 3. d4 {[%emt 0:00:07]} cxd4 {[%emt 0:00:07]} 4. Nxd4 {[%emt 0:00:04]} a6 {[%emt 0:08:17]} 5. c4 {[%emt 0:03:13][%cal Bc2c4,Bc4c5][%mdl 32]} e6 {[%emt 0:00:46]} 6. Nc3 {[%emt 0:01:32]} Qc7 {[%emt 0:04:16]} 7. Be3 {[%emt 0:02:08]} Nf6 {[%emt 0:04:07]} 8. f3 {[%emt 0:04:27]} Bd6 {[%emt 0:01:46]} 9. g3 {[%emt 0:23:57][%cal Oc4c5]} h5 {[%emt 0:03:11] [#]} 10. c5 $1 {[%emt 0:14:15] White is better.} Be7 {[%emt 0:15:30]} (10... Bxc5 11. Ndb5 (11. Nxe6 dxe6 12. Bxc5 e5 $11) 11... axb5 12. Bxc5 $16) 11. Nb3 {[%emt 0:05:11] White is more active.} (11. Na4 $16) 11... d6 {[%emt 0:07:32]} 12. Bf4 {[%emt 0:08:43]} ({White should play} 12. cxd6 $11 Bxd6 13. Qd2) 12... e5 $15 {[%emt 0:04:20]} 13. cxd6 {[%emt 0:00:19]} Bxd6 {[%emt 0:01:52]} 14. Bg5 {[%emt 0:04:31]} (14. Be3 $15) 14... Bb4 {[%emt 0:08:29]} (14... Be6 $17 {Threatens to win with ...Rd8.} 15. Nd5 Bxd5 16. exd5 Bb4+ 17. Kf2 Rd8) 15. Rc1 {[%emt 0:04:03]} (15. Qc2 $11) 15... Be6 {[%emt 0:00:46]} 16. a3 {[%emt 0:01:51]} (16. Qc2 $142) 16... Rd8 $17 {[%emt 0:01:01]} 17. Qc2 {[%emt 0:06:42]} Bxb3 {[%emt 0:16:50]} (17... Be7 $17 {Hoping for ...Qb6.} 18. Nd1 h4 19. gxh4 Nh7 20. Bxe7 Qxe7) 18. Qxb3 $11 {[%emt 0:00:08]} Nd4 {[%emt 0:00:40][%csl LRb3,LRf3]} 19. Qd1 {[%emt 0:09:49][%cal Og5f6]} Ne6 {[%emt 0:11:40] Excellent horsemanship.} 20. Qa4+ {[%emt 0:01:39]} b5 {[%emt 0:00:19]} 21. Qxa6 {[%emt 0:05:03]} Nxg5 {[%emt 0:00:14]} 22. Qxb5+ {[%emt 0:00:10]} Qd7 {[%emt 0:04:42]} (22... Rd7 $11 {remains equal.} 23. Qxb4 Nxf3+ 24. Kf2 Nd4) 23. Qxe5+ $16 {[%emt 0:02:56]} (23. axb4 Nxf3+ 24. Kf2 Nd2 $14) (23. Qxd7+ $6 Rxd7 24. axb4 Nxf3+ 25. Kf2 Nd4 $11) 23... Kf8 {[%emt 0:00:46]} (23... Ne6 $2 24. Bb5 Bc5 25. Nd5 (25. Bxd7+ Nxd7 26. Qd5 O-O $18) 25... Qxb5 26. Nc7+ (26. Nxf6+ $2 gxf6 27. Qc3 Nd4 $19) 26... Kf8 27. Nxb5 $18) (23... Be7 $16 24. Qxg5 O-O) 24. Qxg5 $18 {[%emt 0:00:03]} Be7 {[%emt 0:00:36]} (24... Bxc3+ {might work better.} 25. bxc3 h4) 25. Rd1 {[%emt 0:01:10]} Qa7 {[%emt 0:00:28]} (25... Nxe4 {was called for.} 26. Rxd7 Nxg5 27. Rxd8+ Bxd8) 26. Rxd8+ {[%emt 0:00:12]} Bxd8 {[%emt 0:00:01]} 27. Qd2 {[%emt 0:00:23]} Ba5 {[%emt 0:00:52]} 28. Bc4 {[%emt 0:00:40]} h4 {[%emt 0:00:24]} 29. e5 $2 {[%emt 0:00:35]} (29. g4 $18) 29... hxg3 $16 {[%emt 0:00:47] [#]} 30. exf6 {[%emt 0:00:53]} (30. Kf1 $1 $16 Bxc3 31. bxc3) 30... g2 $2 {[%emt 0:00:33][%mdl 8192]} (30... Rxh2 $11 31. Qd6+ (31. Rxh2 Qg1+ 32. Bf1 gxh2 $11) 31... Kg8 32. Rxh2 Qg1+ 33. Ke2 gxh2 34. Bxf7+ (34. Qb8+ Kh7 $11) 34... Kxf7 35. Qe7+ Kg6 36. Qe8+ (36. Qxg7+ Kf5 $11) (36. fxg7 Qg2+ 37. Ke3 Kh7 $11) 36... Kh7 (36... Kf5 $2 37. f7 $18) 37. Qh5+ Kg8 38. Qe8+ (38. Qxa5 $2 h1=Q $19) 38... Kh7 39. Qh5+ Kg8 40. Qe8+ (40. Qxa5 $2 h1=Q $19) 40... Kh7) 31. fxg7+ $18 {[%emt 0:00:12]} Kxg7 {[%emt 0:00:01][%cal Bf8g7,Bg7f6,Bf6f5][%mdl 32]} 32. Qxg2+ {[%emt 0:00:02]} Kf6 {[%emt 0:00:28]} 33. Qf2 {[%emt 0:00:33]} Bxc3+ {[%emt 0:00:42]} 34. bxc3 {[%emt 0:00:09]} Re8+ {[%emt 0:00:11]} 35. Kf1 {[%emt 0:00:34]} Qxa3 {[%emt 0:00:57]} 36. Qh4+ {[%emt 0:00:23] White mates.} Kf5 {[%emt 0:00:37]} 37. Bd3+ {[%emt 0:00:20]} Ke6 {[%emt 0:00:18]} 38. Qe4+ {[%emt 0:00:21] Weighted Error Value: White=0.42/Black=0.61.  Loses game:     	---       	Black=1      Missed win:     	White=1     	---        Mistake:       	White=6     	Black=6      Inaccurate:     	---       	Black=1      OK:         	White=7     	Black=3      Best:        	White=3     	Black=4} 1-0

[Event "Velammal AICF Women GM 2024"]
[Site "Chennai"]
[Date "2024.03.20"]
[Round "4.5"]
[White "Velpula Sarayu"]
[Black "Sedina, Elena"]
[Result "1/2-1/2"]
[ECO "C11"]
[WhiteElo "2389"]
[BlackElo "2161"]
[Annotator "TA"]
[PlyCount "53"]
[EventDate "2024.03.18"]
[EventType "tourn"]
[EventCountry "IND"]
[SourceTitle "playchess.com"]
[Source "ChessBase"]
[SourceQuality "1"]
[TimeControl "5400+30"]

{[%evp 21,53,1,18,0,17,6,10,14,14,13,11,18,16,18,17,16,19,16,37,10,13,8,19,5,14,0,0,0,0,0,0,0,6,0]} 1. e4 {[%emt 0:00:21][%cal Be2e4,Be4e5][%mdl 32]} e6 {[%emt 0:00:13]} 2. d4 {[%emt 0:00:36]} d5 {[%emt 0:00:06]} 3. Nc3 {[%emt 0:00:29]} Nf6 {[%emt 0:00:43]} 4. e5 {[%emt 0:00:27]} Nfd7 {[%emt 0:00:11]} 5. f4 {[%emt 0:00:33]} c5 {[%emt 0:00:07]} 6. Nf3 {[%emt 0:00:30]} Nc6 {[%emt 0:00:24]} 7. Be3 {[%emt 0:00:28]} Be7 {[%emt 0:01:22]} 8. Qd2 {[%emt 0:00:38]} O-O {[%emt 0:00:41]} 9. dxc5 {[%emt 0:00:24]} Bxc5 {[%emt 0:01:01]} 10. Bxc5 {[%emt 0:06:00]} Nxc5 {[%emt 0:00:06]} 11. O-O-O {[%emt 0:00:34]} Qb6 {[%emt 0:21:42]} 12. Nd4 {[%emt 0:15:55]} Rd8 {[%emt 0:22:32]} 13. Qe3 {[%emt 0:17:34]} Ne4 {[%emt 0:03:48]} 14. Nxe4 {[%emt 0:07:13]} dxe4 {[%emt 0:00:07]} 15. c3 {[%emt 0:00:09][%cal Of1c4]} Nxd4 {[%emt 0:01:18]} 16. Rxd4 {[%emt 0:00:10]} Rxd4 {[%emt 0:00:40]} 17. Qxd4 {[%emt 0:00:11]} Qxd4 {[%emt 0:01:28]} 18. cxd4 $11 {[%emt 0:00:02][%mdl 4096] Endgame. KRB-KRB} Bd7 {[%emt 0:00:43]} 19. Kd2 {[%emt 0:01:06]} Rc8 {[%emt 0:05:04][%cal Oe4e3] Inhibits Bc4.} 20. Be2 {[%emt 0:01:19]} f5 {[%emt 0:04:59] The position is equal.} 21. g4 {[%emt 0:08:47] next gxf5 is good for White.} g6 {[%emt 0:05:34]} 22. Rg1 {[%emt 0:02:26] White wants to play gxf5.} Kf7 {[%emt 0:14:42]} 23. h4 {[%emt 0:06:45]} Bc6 {[%emt 0:05:14]} 24. Rc1 {[%emt 0:04:53]} Bd7 {[%emt 0:07:02]} 25. Rg1 {[%emt 0:02:19]} Bc6 {[%emt 0:00:00]} 26. Rc1 {[%emt 0:13:49]} Bd7 {[%emt 0:00:00]} 27. Rg1 {[%emt 0:03:18] Not much happened in this game.   Weighted Error Value: White=0.05 (flawless) /Black=0.05 (flawless) .  Inaccurate:     	White=1     	---        OK:         	White=5     	Black=7      Best:        	---       	Black=1} 1/2-1/2

[Event "Velammal AICF Women GM 2024"]
[Site "Chennai"]
[Date "2024.03.20"]
[Round "4.6"]
[White "Mahalakshmi, M."]
[Black "Chitlange Sakshi"]
[Result "0-1"]
[ECO "D02"]
[WhiteElo "2242"]
[BlackElo "2175"]
[Annotator "TA"]
[PlyCount "98"]
[EventDate "2024.03.18"]
[EventType "tourn"]
[EventCountry "IND"]
[SourceTitle "playchess.com"]
[Source "ChessBase"]
[SourceQuality "1"]
[TimeControl "5400+30"]

{[%evp 9,98,-8,0,0,8,0,0,0,0,0,0,0,0,0,-4,-28,12,-24,0,0,0,7,10,8,9,0,0,-14,-9,-16,-20,-16,14,-68,-75,-56,-68,-70,-7,-19,-19,-15,-18,-12,-24,-23,-8,-10,0,0,0,0,0,0,0,0,0,0,0,0,0,0,0,-13,0,0,0,0,0,0,0,0,0,0,0,0,0,0,0,0,0,0,16,11,13,5,16,14,206,-935,-916]} 1. d4 {[%emt 0:00:25]} Nf6 {[%emt 0:00:06]} 2. Nf3 {[%emt 0:00:31]} d5 {[%emt 0:00:42]} 3. c3 {[%emt 0:00:07]} c6 {[%emt 0:01:33]} 4. Qc2 {[%emt 0:04:28]} g6 {[%emt 0:02:43]} 5. Bg5 {[%emt 0:02:15]} Bg7 {[%emt 0:01:11]} 6. e3 {[%emt 0:01:00]} Bf5 {[%emt 0:03:58]} 7. Bd3 {[%emt 0:00:14]} Bxd3 {[%emt 0:00:55]} 8. Qxd3 {[%emt 0:00:01] The position is equal.} Ne4 {[%emt 0:02:16]} 9. Bf4 {[%emt 0:01:15]} Qb6 {[%emt 0:05:01]} 10. Qc2 {[%emt 0:01:25]} Nd7 {[%emt 0:01:40][%cal Bb8d7,Bd7f6,Bf6e4][%mdl 32]} 11. O-O {[%emt 0:08:43]} O-O {[%emt 0:00:19]} 12. c4 {[%emt 0:02:34]} Rfe8 {[%emt 0:08:44]} 13. Rd1 {[%emt 0:09:52]} e6 {[%emt 0:09:38]} 14. Nbd2 {[%emt 0:06:08]} Nxd2 {[%emt 0:00:00]} 15. Rxd2 {[%emt 0:01:37]} Nf6 {[%emt 0:00:00]} 16. Rc1 {[%emt 0:04:51]} Rac8 {[%emt 0:01:08]} 17. c5 {[%emt 0:05:41]} Qd8 {[%emt 0:01:12]} 18. Qa4 {[%emt 0:02:30]} Ne4 {[%emt 0:02:44] [#] ...g5 is the strong threat.} 19. Rd3 {[%emt 0:01:28]} a6 {[%emt 0:02:58]} 20. Qb4 {[%emt 0:05:55]} Re7 {[%emt 0:09:02]} 21. Bd6 {[%emt 0:07:15]} (21. h3 $11) 21... Nxd6 $15 {[%emt 0:01:40]} 22. cxd6 {[%emt 0:00:01]} Rd7 {[%emt 0:00:20][%cal Og7f8]} 23. Ne5 {[%emt 0:02:08]} c5 {[%emt 0:04:07]} (23... a5 $15 24. Qb3 Rxd6) 24. Qe1 {[%emt 0:10:59]} (24. Rdc3 {with more complications.} cxb4 25. Rxc8 Rxd6 26. R1c7) 24... Rxd6 {[%emt 0:04:36]} 25. dxc5 {[%emt 0:02:31]} Qc7 {[%emt 0:00:09]} 26. Rdd1 $1 {[%emt 0:01:37]} Rdd8 {[%emt 0:00:25]} 27. Nd3 {[%emt 0:00:16]} Qe7 {[%emt 0:04:30]} 28. b4 {[%emt 0:01:55]} e5 {[%emt 0:00:39]} 29. Nb2 {[%emt 0:01:50]} Qe8 {[%emt 0:05:22] Prevents Na4.} 30. e4 {[%emt 0:01:46]} Qe6 {[%emt 0:06:55]} 31. exd5 {[%emt 0:02:03]} Rxd5 {[%emt 0:00:02]} 32. Nc4 {[%emt 0:00:18] [#] Strongly threatening Rxd5.} Rcd8 {[%emt 0:03:49] And now ...Rxd1 would win.} 33. Nd6 {[%emt 0:02:42]} Rd7 {[%emt 0:01:03]} 34. Qe2 {[%emt 0:02:50]} Rxd1+ {[%emt 0:04:27]} 35. Rxd1 {[%emt 0:02:21]} Bf8 {[%emt 0:03:23]} 36. Qd2 {[%emt 0:01:03]} Rd8 {[%emt 0:06:25]} 37. h3 {[%emt 0:00:54]} Be7 {[%emt 0:01:24]} 38. a4 {[%emt 0:01:45]} Qb3 {[%emt 0:02:06]} 39. a5 {[%emt 0:01:34]} Qe6 {[%emt 0:01:33]} 40. Qd3 {[%emt 0:00:00]} e4 {[%emt 0:01:35]} 41. Qd4 {[%emt 0:01:04]} (41. Qxe4 $2 Qxe4 (41... Bxd6 42. Qxe6 fxe6 43. Rxd6 $18) 42. Nxe4 Rxd1+ $19) 41... Bf6 {[%emt 0:00:00]} 42. Qe3 {[%emt 0:02:03]} (42. Qxe4 $2 Qxe4 43. Nxe4 Rxd1+ $19) 42... Be7 {[%emt 0:00:00]} 43. Qd4 {[%emt 0:00:49]} (43. Qxe4 $2 Qxe4 (43... Bxd6 44. Qxe6 fxe6 45. Rxd6 $18) 44. Nxe4 Rxd1+ $19) 43... Bf6 {[%emt 0:00:00]} 44. Qe3 {[%emt 0:00:00]} (44. Qxe4 $2 Qxe4 45. Nxe4 Rxd1+ $19) 44... Be7 {[%emt 0:00:02]} 45. Qf4 {[%emt 0:00:46]} (45. Qxe4 $2 {is the wrong capture.} Qxe4 (45... Bxd6 $2 {loses.} 46. Qxe6 fxe6 47. Rxd6 $18) 46. Nxe4 Rxd1+ $19) 45... Bf6 {[%emt 0:01:51]} 46. Re1 {[%emt 0:00:45]} (46. Qxe4 $2 {perishes.} Qxe4 47. Nxe4 Rxd1+ $19) 46... Be5 {[%emt 0:00:26]} 47. Qh4 {[%emt 0:00:36]} Rd7 {[%emt 0:00:30]} 48. Nxe4 {[%emt 0:00:51] Threatens to win with Ng5.} f5 $2 {[%emt 0:00:21]} (48... Bg7 $11 {and Black stays safe.} 49. f3 Rd4) 49. Ng3 $4 {[%emt 0:00:34][%mdl 8192]} (49. Ng5 $18 Qd5 50. Kh1) 49... Bxg3 {[%emt 0:00:06] Weighted Error Value: White=0.22 (precise) /Black=0.14 (very precise) .  Loses game:     	---       	Black=1      Missed win:     	White=1     	---        Mistake:       	White=1     	Black=1      Inaccurate:     	White=1     	Black=3      OK:         	White=15    	Black=22     Best:        	---       	Black=3      Strong:       	White=1     	---} 0-1

[Event "Velammal AICF Women GM 2024"]
[Site "Chennai"]
[Date "2024.03.21"]
[Round "5.1"]
[White "Chitlange Sakshi"]
[Black "Bommini Mounika Akshaya"]
[Result "1/2-1/2"]
[ECO "D35"]
[WhiteElo "2175"]
[BlackElo "2134"]
[Annotator "RC"]
[PlyCount "35"]
[EventDate "2024.03.18"]
[EventType "tourn"]
[EventCountry "IND"]
[SourceTitle "playchess.com"]
[Source "ChessBase"]
[SourceQuality "1"]
[TimeControl "5400+30"]

1. d4 {[%emt 0:00:03]} d5 {[%emt 0:00:27]} 2. c4 {[%emt 0:00:14]} e6 {[%emt 0:00:24]} 3. Nc3 {[%emt 0:00:30]} Nf6 {[%emt 0:00:19]} 4. cxd5 {[%emt 0:00:48]} exd5 {[%emt 0:00:36]} 5. Bg5 {[%emt 0:00:12]} Bb4 {[%emt 0:00:41]} 6. e3 {[%emt 0:04:46]} h6 {[%emt 0:00:14]} 7. Bh4 {[%emt 0:02:24]} g5 {[%emt 0:00:16]} 8. Bg3 {[%emt 0:00:01]} Ne4 {[%emt 0:00:28]} 9. Nge2 {[%emt 0:02:39]} h5 {[%emt 0:00:30]} 10. f3 {[%emt 0:02:26]} Nxg3 {[%emt 0:01:42]} 11. hxg3 {[%emt 0:00:39]} Qe7 {[%emt 0:09:31]} 12. Qd2 {[%emt 0:04:29]} c6 {[%emt 0:05:30]} 13. O-O-O {[%emt 0:07:02]} Nd7 {[%emt 0:04:58]} 14. g4 {[%emt 0:05:15]} Nb6 {[%emt 0:11:27]} 15. Ng3 {[%emt 0:06:31]} Na4 {[%emt 0:05:52]} 16. Nge2 {[%emt 0:00:48]} Nb6 {[%emt 0:09:56]} 17. Ng3 Na4 {[%emt 0:04:05]} 18. Nge2 {[%emt 0:05:20]} 1/2-1/2